fUST/lending_fUST_20250915
["ID","MTS","AMOUNT","RATE_DAILY","PERIOD"]
[385539556,1757887840884,-480.0,0.00021917,2]
[385539558,1757887840894,-480.0,0.00021917,2]
[385539560,1757887840904,-480.0,0.00021917,2]
[385539562,1757887840914,-600.84,0.00021917,2]
[385539564,1757887840923,-480.0,0.00021917,2]
[385539566,1757887840932,-480.0,0.00021917,2]
[385539567,1757887840941,-566.08,0.00021917,2]
[385539570,1757887840951,-1452.44,0.00021917,2]
[385539571,1757887840960,-300.0,0.00021917,2]
[385539573,1757887840971,-480.0,0.00021917,2]
[385539575,1757887840981,-704.02,0.00021917,2]
[385539577,1757887840990,-618.93,0.00021917,2]
[385539579,1757887840999,-480.0,0.00021917,2]
[385539581,1757887841009,-480.0,0.00021917,2]
[385539583,1757887841018,-480.0,0.00021917,2]
[385539585,1757887841027,-1264.29,0.00021917,2]
[385539587,1757887841037,-991.26,0.00021917,2]
[385539589,1757887841046,-12444.77,0.00021917,2]
[385539591,1757887841055,-480.0,0.00021917,2]
[385539593,1757887841065,-480.0,0.00021917,2]
[385539595,1757887841074,-1589.38,0.00021917,2]
[385539597,1757887841083,-480.0,0.00021917,2]
[385539599,1757887841092,-681.27,0.00021917,2]
[385539601,1757887841102,-586.37,0.00021917,2]
[385539603,1757887841111,-480.0,0.00021917,2]
[385539605,1757887841120,-648.17,0.00021917,2]
[385539607,1757887841129,-480.0,0.00021917,2]
[385539609,1757887841140,-480.0,0.00021917,2]
[385539611,1757887841150,-480.0,0.00021917,2]
[385539613,1757887841159,-176.12962391,0.00021918,2]
[385539615,1757887841169,-208.0,0.00021941,2]
[385539617,1757887841179,-879.5,0.00022,7]
[385539619,1757887841189,-36066.78,0.00022,7]
[385539621,1757887841199,-151.0,0.00022,2]
[385539623,1757887841208,-208.0,0.00022023,2]
[385539625,1757887841217,-208.0,0.00022048,2]
[385539627,1757887841226,-160.0,0.00022091,3]
[385539629,1757887841236,-160.0,0.00022091,3]
[385539631,1757887841245,-1000.0,0.00022091,2]
[385539633,1757887841254,-14387.33425767,0.00022091,2]
[385539634,1757887841263,-1102.0,0.00022116,3]
[385539635,1757887841272,-151.0,0.00022116,3]
[385539636,1757887841281,-151.0,0.00022116,3]
[385539637,1757887841291,-598.16985905,0.00022116,3]
[385539638,1757887841299,-151.0,0.00022122,2]
[385539639,1757887841309,-970.95434001,0.00022128,2]
[385539640,1757887841318,-208.0,0.00022138,2]
[385539641,1757887841327,-500.0,0.0002214,2]
[385539642,1757887841337,-500.0,0.0002214,2]
[385539643,1757887841346,-500.0,0.0002214,2]
[385539644,1757887841355,-340.91074575,0.0002214,2]
[385539645,1757887841365,-228.29320842,0.0002214,2]
[385539646,1757887841375,-503.52506841,0.0002214,2]
[385539647,1757887841385,-500.0,0.0002214,2]
[385539648,1757887841395,-323.03609201,0.0002214,2]
[385539649,1757887841404,-501.74410794,0.0002214,2]
[385539650,1757887841413,-500.0,0.0002214,2]
[385539651,1757887841423,-501.43906007,0.0002214,2]
[385539652,1757887841432,-500.0,0.0002214,2]
[385539653,1757887841441,-188.84353114,0.0002214,2]
[385539654,1757887841451,-500.0,0.0002214,2]
[385539655,1757887841460,-345.0,0.00022146,2]
[385539656,1757887841469,-300.0,0.0002215,20]
[385539657,1757887841479,-300.0,0.0002215,20]
[385539659,1757887841488,-300.0,0.0002215,20]
[385539661,1757887841497,-300.0,0.0002215,20]
[385539663,1757887841507,-300.0,0.0002215,20]
[385539665,1757887841516,-300.0,0.0002215,20]
[385539667,1757887841526,-300.0,0.0002215,20]
[385539669,1757887841535,-300.0,0.0002215,20]
[385539671,1757887841544,-300.0,0.0002215,20]
[385539673,1757887841553,-300.0,0.0002215,20]
[385539675,1757887841562,-300.0,0.0002215,20]
[385539677,1757887841573,-300.0,0.0002215,20]
[385539679,1757887841583,-300.0,0.0002215,20]
[385539681,1757887841592,-300.0,0.0002215,20]
[385539683,1757887841602,-300.0,0.0002215,20]
[385539685,1757887841611,-600.0,0.0002215,20]
[385539687,1757887841621,-208.0,0.0002217,2]
[385539689,1757887841630,-214.00308036,0.00022173,2]
[385539691,1757887841642,-500.0,0.00022173,2]
[385539693,1757887841651,-513.23307313,0.00022173,2]
[385539695,1757887841662,-500.0,0.00022173,2]
[385539697,1757887841672,-500.0,0.00022173,2]
[385539699,1757887841682,-500.0,0.00022173,2]
[385539701,1757887841692,-500.0,0.00022173,2]
[385539703,1757887841702,-500.0,0.00022173,2]
[385539705,1757887841712,-500.0,0.00022173,2]
[385539707,1757887841721,-501.18299892,0.00022173,2]
[385539709,1757887841731,-500.0,0.00022173,2]
[385539711,1757887841740,-507.17,0.00022191,3]
[385539713,1757887841750,-480.0,0.00022191,3]
[385539715,1757887841759,-480.0,0.00022191,3]
[385539717,1757887841769,-239.69,0.00022191,3]
[385539719,1757887841779,-480.0,0.00022191,3]
[385539721,1757887841788,-480.0,0.00022191,3]
[385539723,1757887841798,-480.0,0.00022191,3]
[385539725,1757887841807,-480.0,0.00022191,3]
[385539727,1757887841816,-480.0,0.00022191,3]
[385539729,1757887841825,-480.0,0.00022191,3]
[385539731,1757887841834,-480.0,0.00022191,3]
[385539733,1757887841844,-480.0,0.00022191,3]
[385539735,1757887841854,-480.0,0.00022191,3]
[385539737,1757887841863,-480.0,0.00022191,3]
[385539739,1757887841872,-480.0,0.00022191,3]
[385539741,1757887841882,-480.0,0.00022191,3]
[385539743,1757887841893,-480.0,0.00022191,3]
[385539745,1757887841902,-480.0,0.00022191,3]
[385539747,1757887841911,-480.0,0.00022191,3]
[385539749,1757887841921,-480.0,0.00022191,3]
[385539751,1757887841930,-799.97,0.00022191,3]
[385539753,1757887841939,-484.57,0.00022191,3]
[385539755,1757887841948,-563.18,0.00022191,3]
[385539757,1757887841957,-480.0,0.00022191,3]
[385539759,1757887841967,-480.0,0.00022191,3]
[385539761,1757887841977,-480.0,0.00022191,3]
[385539763,1757887841987,-480.0,0.00022191,3]
[385539765,1757887841997,-820.38,0.00022191,3]
[385539767,1757887842006,-480.0,0.00022191,3]
[385539769,1757887842015,-480.0,0.00022191,3]
[385539771,1757887842025,-480.0,0.00022191,3]
[385539772,1757887842034,-480.0,0.00022191,3]
[385539775,1757887842044,-480.0,0.00022191,3]
[385539777,1757887842054,-481.16,0.00022191,3]
[385539778,1757887842063,-486.46,0.00022191,3]
[385539780,1757887842073,-245.18522765,0.00022191,3]
[385539782,1757887842082,-480.0,0.00022191,3]
[385539784,1757887842092,-480.0,0.00022191,3]
[385539786,1757887842101,-480.0,0.00022191,3]
[385539788,1757887842124,-514.62,0.00022191,3]
[385539790,1757887842142,-480.0,0.00022191,3]
[385539792,1757887842152,-1341.53,0.00022191,3]
[385539794,1757887842163,-754.17,0.00022191,3]
[385539796,1757887842177,-480.0,0.00022191,3]
[385539798,1757887842190,-3765.01,0.00022191,3]
[385539800,1757887842199,-658.2,0.00022191,3]
[385539802,1757887842208,-480.0,0.00022191,3]
[385539804,1757887842220,-939.98,0.00022191,3]
[385539806,1757887842233,-480.0,0.00022191,3]
[385539808,1757887842242,-858.8,0.00022191,3]
[385539810,1757887842251,-480.0,0.00022191,3]
[385539812,1757887842262,-480.0,0.00022191,3]
[385539813,1757887842271,-1050.05,0.00022191,3]
[385539815,1757887842281,-2141.92,0.00022191,3]
[385539817,1757887842290,-480.0,0.00022191,3]
[385539820,1757887842300,-480.0,0.00022191,3]
[385539821,1757887842311,-480.0,0.00022191,3]
[385539824,1757887842320,-480.0,0.00022191,3]
[385539826,1757887842331,-480.0,0.00022191,3]
[385539828,1757887842340,-480.0,0.00022191,3]
[385539830,1757887842350,-480.0,0.00022191,3]
[385539832,1757887842359,-674.12,0.00022191,3]
[385539834,1757887842368,-3759.44,0.00022191,3]
[385539835,1757887842377,-7615.81,0.00022191,3]
[385539837,1757887842386,-480.0,0.00022191,3]
[385539839,1757887842395,-480.0,0.00022191,3]
[385539841,1757887842405,-480.0,0.00022191,3]
[385539843,1757887842414,-666.4,0.00022191,3]
[385539846,1757887842424,-480.0,0.00022191,3]
[385539847,1757887842433,-480.0,0.00022191,3]
[385539849,1757887842443,-1548.7,0.00022191,3]
[385539852,1757887842452,-1228.23,0.00022191,3]
[385539854,1757887842461,-1662.4,0.00022191,3]
[385539856,1757887842471,-1553.69,0.00022191,3]
[385539858,1757887842480,-480.0,0.00022191,3]
[385539860,1757887842489,-657.85,0.00022191,3]
[385539862,1757887842498,-1483.53,0.00022191,3]
[385539864,1757887842507,-2218.58,0.00022191,3]
[385539866,1757887842517,-664.43,0.00022191,3]
[385539868,1757887842526,-484.26,0.00022191,3]
[385539871,1757887842535,-515.91,0.00022191,3]
[385539872,1757887842545,-480.0,0.00022191,3]
[385539875,1757887842554,-598.72,0.00022191,3]
[385539877,1757887842563,-480.0,0.00022191,3]
[385539880,1757887842573,-480.0,0.00022191,3]
[385539882,1757887842582,-3034.58,0.00022191,3]
[385539883,1757887842591,-480.0,0.00022191,3]
[385539885,1757887842602,-480.0,0.00022191,3]
[385539888,1757887842612,-1263.32,0.00022191,3]
[385539889,1757887842621,-480.0,0.00022191,3]
[385539891,1757887842631,-529.75,0.00022191,3]
[385539893,1757887842642,-743.91,0.00022191,3]
[385539895,1757887842651,-581.6,0.00022191,3]
[385539898,1757887842661,-2132.04,0.00022191,3]
[385539900,1757887842671,-525.32,0.00022191,3]
[385539902,1757887842680,-89.37641475,0.00022191,3]
[385540081,1757887844493,-603.35,0.00021917,2]
[385540083,1757887844503,-480.0,0.00021917,2]
[385540085,1757887844512,-390.62358525,0.00022191,3]
[385540087,1757887844522,-480.0,0.00022191,3]
[385540089,1757887844531,-847.73,0.00022191,3]
[385540092,1757887844541,-379.56324835,0.00022191,3]
[385540094,1757887844552,-274.42675165,0.00022191,3]
[385540096,1757887844561,-150.57324835,0.00022191,3]
[385540098,1757887844573,-329.42675165,0.00022191,3]
[385540100,1757887844583,-480.0,0.00022191,3]
[385540102,1757887844592,-480.0,0.00022191,3]
[385540104,1757887844601,-480.0,0.00022191,3]
[385540106,1757887844610,-346.01813014,0.00022191,3]
[385540108,1757887844621,-254.82186986,0.00022191,3]
[385540110,1757887844631,-480.0,0.00022191,3]
[385540112,1757887844640,-480.0,0.00022191,3]
[385540114,1757887844649,-566.08,0.00022191,3]
[385540116,1757887844658,-1452.44,0.00022191,3]
[385540118,1757887844668,-300.0,0.00022191,2]
[385540120,1757887844677,-480.0,0.00022191,3]
[385540122,1757887844687,-704.02,0.00022191,3]
[385540124,1757887844695,-618.93,0.00022191,3]
[385540126,1757887844705,-480.0,0.00022191,3]
[385540128,1757887844714,-480.0,0.00022191,3]
[385540130,1757887844723,-480.0,0.00022191,3]
[385540132,1757887844732,-1264.29,0.00022191,3]
[385540134,1757887844741,-991.26,0.00022191,3]
[385540136,1757887844750,-814.66266131,0.00022191,3]
[385540139,1757887844762,-3281.72824,0.00022191,3]
[385540290,1757887846140,-204.17763446,0.00021163,2]
[385540292,1757887846149,-614.27,0.00022,2]
[385540294,1757887846159,-8348.37909869,0.00022191,3]
[385540296,1757887846168,-480.0,0.00022191,3]
[385540297,1757887846181,-480.0,0.00022191,3]
[385540299,1757887846192,-1589.38,0.00022191,3]
[385540301,1757887846201,-480.0,0.00022191,3]
[385540303,1757887846211,-681.27,0.00022191,3]
[385540305,1757887846220,-586.37,0.00022191,3]
[385540307,1757887846230,-480.0,0.00022191,3]
[385540309,1757887846239,-648.17,0.00022191,3]
[385540311,1757887846249,-480.0,0.00022191,3]
[385540313,1757887846258,-480.0,0.00022191,3]
[385540315,1757887846268,-480.0,0.00022191,3]
[385540317,1757887846277,-603.35,0.00022191,3]
[385540319,1757887846286,-480.0,0.00022191,3]
[385540321,1757887846295,-208.0,0.00022201,2]
[385540323,1757887846304,-208.0,0.0002222,2]
[385540325,1757887846313,-500.0,0.00022282,2]
[385540327,1757887846322,-500.0,0.00022282,2]
[385540329,1757887846332,-649.27957323,0.00022282,2]
[385540331,1757887846341,-500.0,0.00022309,2]
[385540333,1757887846350,-500.0,0.00022309,2]
[385540335,1757887846359,-500.0,0.00022309,2]
[385540337,1757887846368,-256.4467354,0.00022309,2]
[385545995,1757887950325,1966.83844056,0.000199,2]
[385545999,1757888135431,1901.27715915,0.000199,2]
[385546001,1757888315763,1837.90125399,0.000199,2]
[385546002,1757888496153,1776.63787877,0.000199,2]
[385546004,1757888519796,644.92186291,0.0002,2]
[385546005,1757888519819,10000.01,0.0002,2]
[385546006,1757888519842,10000.01,0.0002,2]
[385546007,1757888519864,9355.05813709,0.0002,2]
[385546008,1757888676199,644.95186291,0.000199,2]
[385546009,1757888676225,1072.46475307,0.000199,2]
[385546019,1757888824457,20000.0,0.00030342,50]
[385546020,1757888825119,-204.12988113,0.00020729,2]
[385546021,1757888825143,-1717.41661597,0.00021149,2]
[385546022,1757888825164,-1028.67630635,0.00021215,2]
[385546023,1757888825184,-1577.44,0.00021306,10]
[385546024,1757888825204,-1314.53,0.00021306,10]
[385546025,1757888825224,-486.0,0.00021314,2]
[385546026,1757888825244,-300.0,0.00021314,2]
[385546027,1757888825265,-2473.03116813,0.00021315,2]
[385546028,1757888856143,1602.92217506,0.000199,2]
[385546052,1757889032356,-300.0,0.00020999,2]
[385546053,1757889032366,-10000.0,0.00021,5]
[385546054,1757889032375,-687.00670451,0.00021,10]
[385546055,1757889032384,-7284.28208164,0.00021,3]
[385546056,1757889032395,-900.09176803,0.00021215,2]
[385546057,1757889032404,-577.71,0.00021306,10]
[385546058,1757889032414,-999.16,0.00021306,10]
[385546059,1757889032423,-832.63,0.00021306,10]
[385546060,1757889032432,-27888.23902445,0.00021315,2]
[385546062,1757889032442,-500.0,0.00021315,2]
[385546064,1757889032451,-500.0,0.00021315,2]
[385546066,1757889032460,-513.76764222,0.00021315,2]
[385546067,1757889032470,-300.80209434,0.00021315,2]
[385546068,1757889032479,-553.70570543,0.00021315,2]
[385546069,1757889032489,-500.0,0.00021315,2]
[385546070,1757889032499,-500.0,0.00021315,2]
[385546071,1757889032509,-64644.23724618,0.00021316,2]
[385546072,1757889032522,-2391.78075886,0.00021316,2]
[385546073,1757889032533,-15167.9411276,0.00021316,2]
[385546074,1757889032544,-956.23404994,0.00021316,2]
[385546075,1757889032555,-1185.32255015,0.00021316,2]
[385546076,1757889032565,-12440.57605853,0.00021316,2]
[385546077,1757889037073,1549.49143593,0.000199,2]
[385546081,1757889038400,-1549.49143573,0.00021149,2]
[385546082,1757889038410,-1144.35859488,0.00021316,2]
[385546083,1757889038420,-532.94082042,0.00021752,2]
[385546084,1757889038429,-169.9453059,0.000218,2]
[385546085,1757889038438,-616.3215151,0.000218,2]
[385546086,1757889038447,-313.4559726,0.000218,2]
[385546087,1757889038457,-3219.67566949,0.00021862,2]
[385546089,1757889038538,-5925.79232994,0.00021862,2]
[385546090,1757889038549,-906.336004,0.00021862,2]
[385546092,1757889040320,-460.95174316,0.00021862,2]
[385546093,1757889040386,-77.54528579,0.00021862,2]
[385546094,1757889040395,-160.0,0.00021883,2]
[385546095,1757889040405,-29.45471421,0.00021883,2]
[385546096,1757889040416,-203.74525069,0.00021883,2]
[385546097,1757889040425,-217.77739939,0.00021883,2]
[385546098,1757889040435,-34.87734992,0.00021883,2]
[385546099,1757889040446,-125.12265008,0.00021883,2]
[385546100,1757889040456,-447.20234992,0.00021883,2]
[385546101,1757889040466,-400.07650275,0.00021883,2]
[385546102,1757889040475,-155.0,0.00021916,2]
[385546103,1757889040484,-500.0,0.00021916,2]
[385546104,1757889040493,-196.92968723,0.00021916,2]
[385546105,1757889040502,-500.0,0.00021916,2]
[385546106,1757889040511,-194.20724141,0.00021916,2]
[385546107,1757889040521,-500.0,0.00021916,2]
[385546108,1757889040530,-500.0,0.00021916,2]
[385546109,1757889040539,-500.0,0.00021916,2]
[385546110,1757889040548,-500.0,0.00021916,2]
[385546111,1757889040558,-633.0843055,0.00021916,2]
[385546112,1757889040567,-500.0,0.00021916,2]
[385546113,1757889040576,-500.0,0.00021916,2]
[385546114,1757889040585,-480.0,0.00021917,2]
[385546115,1757889040594,-480.0,0.00021917,2]
[385546116,1757889040603,-480.0,0.00021917,2]
[385546117,1757889040613,-733.31,0.00021917,2]
[385546118,1757889040622,-480.0,0.00021917,2]
[385546119,1757889040631,-480.0,0.00021917,2]
[385546120,1757889040640,-480.0,0.00021917,2]
[385546121,1757889040649,-480.0,0.00021917,2]
[385546122,1757889040658,-480.0,0.00021917,2]
[385546123,1757889040668,-480.0,0.00021917,2]
[385546124,1757889040677,-480.0,0.00021917,2]
[385546125,1757889040687,-785.78,0.00021917,2]
[385546126,1757889040696,-480.0,0.00021917,2]
[385546127,1757889040704,-480.0,0.00021917,2]
[385546128,1757889040713,-480.0,0.00021917,2]
[385546129,1757889040723,-480.0,0.00021917,2]
[385546130,1757889040733,-480.0,0.00021917,2]
[385546131,1757889040742,-480.0,0.00021917,2]
[385546132,1757889040752,-480.0,0.00021917,2]
[385546133,1757889040761,-480.0,0.00021917,2]
[385546134,1757889040771,-480.0,0.00021917,2]
[385546135,1757889040780,-480.0,0.00021917,2]
[385546136,1757889040790,-480.0,0.00021917,2]
[385546137,1757889040800,-480.0,0.00021917,2]
[385546138,1757889040809,-480.0,0.00021917,2]
[385546139,1757889040818,-861.65,0.00021917,2]
[385546140,1757889040828,-480.0,0.00021917,2]
[385546141,1757889040839,-480.0,0.00021917,2]
[385546142,1757889040850,-480.0,0.00021917,2]
[385546143,1757889040860,-480.0,0.00021917,2]
[385546144,1757889040869,-480.0,0.00021917,2]
[385546145,1757889040879,-480.0,0.00021917,2]
[385546146,1757889040890,-480.0,0.00021917,2]
[385546147,1757889040900,-598.06,0.00021917,2]
[385546148,1757889040910,-480.0,0.00021917,2]
[385546149,1757889040919,-480.0,0.00021917,2]
[385546150,1757889040928,-357.75164448,0.00021917,2]
[385546151,1757889040938,-480.0,0.00021917,2]
[385546152,1757889040947,-480.0,0.00021917,2]
[385546153,1757889040958,-480.0,0.00021917,2]
[385546154,1757889040969,-787.24,0.00021917,2]
[385546155,1757889040982,-480.0,0.00021917,2]
[385546156,1757889040991,-962.55,0.00021917,2]
[385546157,1757889041001,-480.0,0.00021917,2]
[385546158,1757889041011,-480.0,0.00021917,2]
[385546159,1757889041020,-603.03,0.00021917,2]
[385546160,1757889041029,-480.0,0.00021917,2]
[385546161,1757889041039,-480.0,0.00021917,2]
[385546162,1757889041048,-3446.15,0.00021917,2]
[385546163,1757889041058,-480.0,0.00021917,2]
[385546164,1757889041067,-1125.87,0.00021917,2]
[385546165,1757889041077,-480.0,0.00021917,2]
[385546166,1757889041086,-480.0,0.00021917,2]
[385546167,1757889041095,-610.86,0.00021917,2]
[385546168,1757889041105,-617.94,0.00021917,2]
[385546169,1757889041114,-480.0,0.00021917,2]
[385546170,1757889041123,-1424.22,0.00021917,2]
[385546171,1757889041132,-480.0,0.00021917,2]
[385546172,1757889041141,-1359.9,0.00021917,2]
[385546173,1757889041151,-480.0,0.00021917,2]
[385546174,1757889041160,-1523.87,0.00021917,2]
[385546175,1757889041170,-586.3,0.00021917,2]
[385546176,1757889041179,-609.06,0.00021917,2]
[385546177,1757889041188,-480.0,0.00021917,2]
[385546178,1757889041198,-480.0,0.00021917,2]
[385546179,1757889041207,-480.0,0.00021917,2]
[385546180,1757889041218,-2781.7,0.00021917,2]
[385546181,1757889041228,-425.69552133,0.00021917,2]
[385546182,1757889041238,-586.62,0.00021917,2]
[385546183,1757889041247,-480.0,0.00021917,2]
[385546184,1757889041265,-594.16,0.00021917,2]
[385546185,1757889041291,-2033.7,0.00021917,2]
[385546186,1757889041300,-548.83,0.00021917,2]
[385546187,1757889041328,-480.0,0.00021917,2]
[385546188,1757889041350,-480.0,0.00021917,2]
[385546189,1757889041360,-1158.05,0.00021917,2]
[385546190,1757889041369,-480.0,0.00021917,2]
[385546191,1757889041378,-480.0,0.00021917,2]
[385546192,1757889041387,-480.0,0.00021917,2]
[385546193,1757889041396,-533.13,0.00021917,2]
[385546194,1757889041405,-485.61,0.00021917,2]
[385546195,1757889041414,-1954.37,0.00021917,2]
[385546196,1757889041423,-480.0,0.00021917,2]
[385546197,1757889041433,-480.0,0.00021917,2]
[385546198,1757889041443,-294.92875363,0.00021917,2]
[385546199,1757889041454,-480.0,0.00021917,2]
[385546200,1757889041465,-300.0,0.00021917,2]
[385546201,1757889041475,-599.5,0.00021917,2]
[385546202,1757889041487,-681.92,0.00021917,2]
[385546203,1757889041496,-550.77,0.00021917,2]
[385546204,1757889041506,-777.09,0.00021917,2]
[385546205,1757889041517,-480.0,0.00021917,2]
[385546206,1757889041527,-480.0,0.00021917,2]
[385546207,1757889041537,-518.9,0.00021917,2]
[385546208,1757889041546,-480.0,0.00021917,2]
[385546209,1757889041557,-1331.4,0.00021917,2]
[385546210,1757889041567,-11407.7,0.00021917,2]
[385546211,1757889041577,-537.51,0.00021917,2]
[385546212,1757889041586,-480.0,0.00021917,2]
[385546213,1757889041598,-480.0,0.00021917,2]
[385546214,1757889041608,-226.56197698,0.00021917,2]
[385546215,1757889041617,-624.49,0.00021917,2]
[385546216,1757889041627,-480.0,0.00021917,2]
[385546217,1757889041637,-645.35,0.00021917,2]
[385546218,1757889041647,-567.36,0.00021917,2]
[385546219,1757889041656,-480.0,0.00021917,2]
[385546220,1757889041665,-1456.94,0.00021917,2]
[385546221,1757889041674,-480.0,0.00021917,2]
[385546222,1757889041684,-1158.93,0.00021917,2]
[385546223,1757889041694,-908.66,0.00021917,2]
[385546224,1757889041703,-480.0,0.00021917,2]
[385546225,1757889041714,-1229.74,0.00021917,2]
[385546226,1757889041725,-480.0,0.00021917,2]
[385546227,1757889041735,-480.0,0.00021917,2]
[385546228,1757889041746,-595.17,0.00021917,2]
[385546229,1757889041756,-480.0,0.00021917,2]
[385546230,1757889041765,-480.0,0.00021917,2]
[385546231,1757889041775,-3451.26,0.00021917,2]
[385546232,1757889041786,-480.0,0.00021917,2]
[385546233,1757889041798,-480.0,0.00021917,2]
[385546234,1757889041808,-480.0,0.00021917,2]
[385546235,1757889041819,-691.32,0.00021917,2]
[385546236,1757889041828,-480.0,0.00021917,2]
[385546237,1757889041838,-6981.16,0.00021917,2]
[385546238,1757889041849,-516.24,0.00021917,2]
[385546239,1757889041860,-553.07,0.00021917,2]
[385546240,1757889041870,-1963.43,0.00021917,2]
[385546241,1757889041879,-480.0,0.00021917,2]
[385546242,1757889041888,-500.0,0.00021973,2]
[385546243,1757889041898,-500.0,0.00021973,2]
[385546244,1757889041907,-500.0,0.00021973,2]
[385546245,1757889041917,-500.0,0.00021973,2]
[385546246,1757889041926,-500.0,0.00021973,2]
[385546247,1757889041935,-500.0,0.00021973,2]
[385546248,1757889041945,-500.0,0.00021973,2]
[385546249,1757889041955,-532.94082042,0.00021992,2]
[385546250,1757889041964,-151.0,0.00022,2]
[385546251,1757889041974,-546.02,0.00022,2]
[385546252,1757889041990,-625.22478393,0.00022006,2]
[385546253,1757889041999,-168.0,0.00022114,2]
[385546254,1757889042008,-964.0,0.00022116,3]
[385546255,1757889042017,-244.85481629,0.00022116,3]
[385546256,1757889042029,-151.0,0.00022116,3]
[385546257,1757889042039,-151.0,0.00022116,3]
[385546258,1757889042049,-151.0,0.00022116,3]
[385546259,1757889042059,-501.26335615,0.00022173,2]
[385546260,1757889042069,-500.0,0.00022173,2]
[385546261,1757889042079,-480.0,0.00022191,3]
[385546262,1757889042088,-480.0,0.00022191,3]
[385546263,1757889042097,-480.0,0.00022191,3]
[385546264,1757889042106,-733.31,0.00022191,3]
[385546265,1757889042116,-480.0,0.00022191,3]
[385546266,1757889042125,-480.0,0.00022191,3]
[385546267,1757889042135,-480.0,0.00022191,3]
[385546268,1757889042146,-480.0,0.00022191,3]
[385546269,1757889042156,-480.0,0.00022191,3]
[385546270,1757889042167,-480.0,0.00022191,3]
[385546271,1757889042177,-785.78,0.00022191,3]
[385546272,1757889042186,-480.0,0.00022191,3]
[385546273,1757889042196,-568.12903389,0.00022191,3]
[385546274,1757889042207,-480.0,0.00022191,3]
[385546275,1757889042218,-480.0,0.00022191,3]
[385546276,1757889042229,-480.0,0.00022191,3]
[385546277,1757889042238,-480.0,0.00022191,3]
[385546278,1757889042247,-480.0,0.00022191,3]
[385546280,1757889042257,-480.0,0.00022191,3]
[385546281,1757889042266,-480.0,0.00022191,3]
[385546282,1757889042275,-480.0,0.00022191,3]
[385546283,1757889042285,-480.0,0.00022191,3]
[385546284,1757889042295,-480.0,0.00022191,3]
[385546285,1757889042304,-480.0,0.00022191,3]
[385546286,1757889042313,-861.65,0.00022191,3]
[385546287,1757889042322,-480.0,0.00022191,3]
[385546288,1757889042332,-480.0,0.00022191,3]
[385546289,1757889042341,-480.0,0.00022191,3]
[385546290,1757889042350,-480.0,0.00022191,3]
[385546291,1757889042360,-480.0,0.00022191,3]
[385546292,1757889042369,-480.0,0.00022191,3]
[385546293,1757889042378,-480.0,0.00022191,3]
[385546294,1757889042388,-598.06,0.00022191,3]
[385546295,1757889042397,-480.0,0.00022191,3]
[385546296,1757889042407,-374.13513559,0.00022191,3]
[385546297,1757889042416,-480.0,0.00022191,3]
[385546298,1757889042426,-480.0,0.00022191,3]
[385546299,1757889042436,-480.0,0.00022191,3]
[385546300,1757889042445,-787.24,0.00022191,3]